fUST/lending_fUST_20250628
["ID","MTS","AMOUNT","RATE_DAILY","PERIOD"]
[368188078,1751053847375,-460.0,0.00020273,2]
[368188079,1751053847384,-367.42878218,0.00020273,2]
[368188080,1751053847395,-460.0,0.00020273,2]
[368188081,1751053847405,-691.31,0.00020273,2]
[368188082,1751053847415,-460.0,0.00020273,2]
[368188083,1751053847424,-460.0,0.00020273,2]
[368188084,1751053847434,-460.0,0.00020273,2]
[368188085,1751053847443,-895.91,0.00020273,2]
[368188086,1751053847453,-501.78,0.00020273,2]
[368188087,1751053847462,-460.0,0.00020273,2]
[368188088,1751053847471,-460.0,0.00020273,2]
[368188089,1751053847481,-480.75,0.00020273,2]
[368188090,1751053847491,-460.0,0.00020273,2]
[368188091,1751053847500,-460.0,0.00020273,2]
[368188092,1751053847509,-460.0,0.00020273,2]
[368188093,1751053847519,-460.0,0.00020273,2]
[368188094,1751053847528,-460.0,0.00020273,2]
[368188095,1751053847538,-460.0,0.00020273,2]
[368188096,1751053847547,-460.0,0.00020273,2]
[368188097,1751053847557,-460.0,0.00020273,2]
[368188098,1751053847566,-460.0,0.00020273,2]
[368188099,1751053847576,-460.0,0.00020273,2]
[368188100,1751053847585,-460.0,0.00020273,2]
[368188101,1751053847595,-460.0,0.00020273,2]
[368188102,1751053847605,-460.0,0.00020273,2]
[368188103,1751053847615,-460.0,0.00020273,2]
[368188104,1751053847624,-460.0,0.00020273,2]
[368188105,1751053847633,-460.0,0.00020273,2]
[368188106,1751053847644,-460.0,0.00020273,2]
[368188107,1751053847654,-460.0,0.00020273,2]
[368188108,1751053847663,-906.52,0.00020273,2]
[368188109,1751053847673,-596.37,0.00020273,2]
[368188110,1751053847683,-460.0,0.00020273,2]
[368188111,1751053847692,-495.9,0.00020273,2]
[368188112,1751053847701,-460.0,0.00020273,2]
[368188113,1751053847711,-460.0,0.00020273,2]
[368188114,1751053847720,-460.0,0.00020273,2]
[368188115,1751053847730,-460.0,0.00020273,2]
[368188116,1751053847740,-460.0,0.00020273,2]
[368188117,1751053847749,-590.56351709,0.00020273,2]
[368188118,1751053847759,-460.0,0.00020273,2]
[368188119,1751053847768,-460.0,0.00020273,2]
[368188120,1751053847778,-814.93,0.00020273,2]
[368188121,1751053847787,-1058.59,0.00020273,2]
[368188122,1751053847797,-460.0,0.00020273,2]
[368188123,1751053847807,-638.46,0.00020273,2]
[368188124,1751053847816,-460.0,0.00020273,2]
[368188125,1751053847825,-460.0,0.00020273,2]
[368188126,1751053847834,-549.61,0.00020273,2]
[368188127,1751053847844,-460.0,0.00020273,2]
[368188128,1751053847854,-460.0,0.00020273,2]
[368188129,1751053847863,-460.0,0.00020273,2]
[368188130,1751053847873,-2242.83,0.00020273,2]
[368188131,1751053847882,-460.0,0.00020273,2]
[368188132,1751053847892,-460.0,0.00020273,2]
[368188133,1751053847902,-460.0,0.00020273,2]
[368188134,1751053847912,-633.0,0.00020273,2]
[368188135,1751053847922,-619.29,0.00020273,2]
[368188136,1751053847931,-784.22,0.00020273,2]
[368188137,1751053847941,-460.0,0.00020273,2]
[368188138,1751053847950,-460.0,0.00020273,2]
[368188139,1751053847960,-646.64,0.00020273,2]
[368188140,1751053847970,-603.09,0.00020273,2]
[368188141,1751053847980,-842.86,0.00020273,2]
[368188142,1751053847989,-460.0,0.00020273,2]
[368188143,1751053847999,-734.51,0.00020273,2]
[368188144,1751053848008,-1307.19,0.00020273,2]
[368188145,1751053848018,-460.0,0.00020273,2]
[368188146,1751053848028,-568.8,0.00020273,2]
[368188147,1751053848038,-2113.32,0.00020273,2]
[368188148,1751053848047,-460.0,0.00020273,2]
[368188149,1751053848057,-460.0,0.00020273,2]
[368188150,1751053848067,-483.6,0.00020273,2]
[368188151,1751053848076,-468.81,0.00020273,2]
[368188152,1751053848086,-460.0,0.00020273,2]
[368188153,1751053848096,-848.41,0.00020273,2]
[368188154,1751053848105,-460.0,0.00020273,2]
[368188155,1751053848115,-460.0,0.00020273,2]
[368188156,1751053848125,-158.2548994,0.00020273,2]
[368188157,1751053848134,-3785.4,0.00020273,2]
[368188158,1751053848145,-460.0,0.00020273,2]
[368188159,1751053848155,-3582.34,0.00020273,2]
[368188160,1751053848165,-460.0,0.00020273,2]
[368188161,1751053848175,-1149.0,0.00020273,2]
[368188162,1751053848184,-574.04,0.00020273,2]
[368188163,1751053848194,-460.0,0.00020273,2]
[368188164,1751053848204,-460.0,0.00020273,2]
[368188165,1751053848214,-4447.6,0.00020273,2]
[368188166,1751053848224,-460.0,0.00020273,2]
[368188167,1751053848234,-6901.52,0.00020273,2]
[368188168,1751053848244,-460.0,0.00020273,2]
[368188169,1751053848253,-460.0,0.00020273,2]
[368188170,1751053848264,-852.45,0.00020273,2]
[368188171,1751053848274,-295.42397296,0.00020273,2]
[368188172,1751053848284,-460.0,0.00020273,2]
[368188173,1751053848298,-679.41,0.00020273,2]
[368188174,1751053848307,-565.42,0.00020273,2]
[368188175,1751053848317,-460.0,0.00020273,2]
[368188176,1751053848327,-460.0,0.00020273,2]
[368188177,1751053848337,-460.0,0.00020273,2]
[368188178,1751053848348,-460.0,0.00020273,2]
[368188179,1751053848358,-2405.58,0.00020273,2]
[368188180,1751053848368,-1768.21,0.00020273,2]
[368188181,1751053848378,-460.0,0.00020273,2]
[368188182,1751053848389,-682.75,0.00020273,2]
[368188183,1751053848399,-460.0,0.00020273,2]
[368188184,1751053848409,-1787.48,0.00020273,2]
[368188185,1751053848419,-460.0,0.00020273,2]
[368188186,1751053848429,-822.23,0.00020273,2]
[368188187,1751053848439,-460.0,0.00020273,2]
[368188188,1751053848449,-460.0,0.00020273,2]
[368188189,1751053848460,-954.48,0.00020273,2]
[368188190,1751053848470,-2374.8,0.00020273,2]
[368188191,1751053848480,-502.63,0.00020273,2]
[368188192,1751053848491,-460.0,0.00020273,2]
[368188193,1751053848501,-460.0,0.00020273,2]
[368188194,1751053848511,-1416.54,0.00020273,2]
[368188195,1751053848521,-2471.16,0.00020273,2]
[368188196,1751053848530,-460.0,0.00020273,2]
[368188197,1751053848540,-460.0,0.00020273,2]
[368188198,1751053848682,-839.48,0.00020273,2]
[368188199,1751053848692,-460.0,0.00020273,2]
[368188200,1751053848702,-460.0,0.00020273,2]
[368188201,1751053848711,-460.0,0.00020273,2]
[368188202,1751053848720,-607.0,0.00020273,2]
[368188203,1751053848729,-6207.0,0.00020273,2]
[368188204,1751053848738,-813.61,0.00020273,2]
[368188205,1751053848747,-460.0,0.00020273,2]
[368188206,1751053848756,-460.0,0.00020273,2]
[368188207,1751053848766,-596.72,0.00020273,2]
[368188208,1751053848775,-460.0,0.00020273,2]
[368188209,1751053848784,-460.0,0.00020273,2]
[368188210,1751053848794,-2116.86,0.00020273,2]
[368188211,1751053848803,-3896.14,0.00020273,2]
[368188212,1751053848813,-460.0,0.00020273,2]
[368188213,1751053848822,-875.63,0.00020273,2]
[368188214,1751053848832,-460.0,0.00020273,2]
[368188215,1751053848841,-814.23,0.00020273,2]
[368188216,1751053848851,-693.24,0.00020273,2]
[368188217,1751053848860,-460.0,0.00020273,2]
[368188218,1751053848873,-460.0,0.00020273,2]
[368188219,1751053848887,-460.0,0.00020273,2]
[368188220,1751053848897,-8109.64,0.00020273,2]
[368188221,1751053848906,-460.0,0.00020273,2]
[368188222,1751053848916,-460.0,0.00020273,2]
[368188223,1751053848926,-1086.05,0.00020273,2]
[368188224,1751053848936,-460.0,0.00020273,2]
[368188225,1751053848945,-460.0,0.00020273,2]
[368188226,1751053848954,-1689.17,0.00020273,2]
[368188227,1751053848963,-460.0,0.00020273,2]
[368188228,1751053848973,-460.0,0.00020273,2]
[368188229,1751053848983,-3624.49,0.00020273,2]
[368188230,1751053848992,-460.0,0.00020273,2]
[368188231,1751053849003,-460.0,0.00020273,2]
[368188232,1751053849014,-2205.06,0.00020273,2]
[368188233,1751053849026,-460.0,0.00020273,2]
[368188234,1751053849035,-524.72,0.00020273,2]
[368188235,1751053849045,-460.0,0.00020273,2]
[368188236,1751053849054,-855.54,0.00020273,2]
[368188237,1751053849064,-460.0,0.00020273,2]
[368188238,1751053849075,-884.62,0.00020273,2]
[368188239,1751053849085,-4382.09,0.00020273,2]
[368188240,1751053849094,-2269.22702627,0.0002031,2]
[368188241,1751053849105,-353.93723729,0.00020318,2]
[368188242,1751053849115,-12640.82011563,0.00020342,2]
[368188243,1751053849124,-6150.849873,0.00020383,3]
[368188244,1751053849134,-151.0,0.000204,4]
[368188245,1751053849143,-168.0,0.00020505,2]
[368188246,1751053849153,-460.0,0.00020547,2]
[368188247,1751053849163,-460.0,0.00020547,2]
[368188248,1751053849173,-460.0,0.00020547,2]
[368188249,1751053849183,-691.31,0.00020547,2]
[368188250,1751053849193,-460.0,0.00020547,2]
[368188251,1751053849202,-460.0,0.00020547,2]
[368188252,1751053849212,-460.0,0.00020547,2]
[368188253,1751053849223,-895.91,0.00020547,2]
[368188254,1751053849233,-501.78,0.00020547,2]
[368188255,1751053849245,-460.0,0.00020547,2]
[368188256,1751053849258,-461.91124575,0.00020547,2]
[368188257,1751053849267,-480.75,0.00020547,2]
[368188258,1751053849277,-460.0,0.00020547,2]
[368188259,1751053849290,-460.0,0.00020547,2]
[368188260,1751053849302,-269.68184967,0.00020547,2]
[368188261,1751053849312,-460.0,0.00020547,2]
[368188262,1751053849323,-460.0,0.00020547,2]
[368188263,1751053849333,-460.0,0.00020547,2]
[368188264,1751053849343,-460.0,0.00020547,2]
[368188265,1751053849353,-460.0,0.00020547,2]
[368188266,1751053849363,-460.0,0.00020547,2]
[368188267,1751053849374,-460.0,0.00020547,2]
[368188268,1751053849383,-460.0,0.00020547,2]
[368188269,1751053849393,-460.0,0.00020547,2]
[368188270,1751053849403,-319.74,0.00020547,2]
[368188271,1751053849412,-460.0,0.00020547,2]
[368188272,1751053849422,-460.0,0.00020547,2]
[368188273,1751053849431,-460.0,0.00020547,2]
[368188274,1751053849440,-460.0,0.00020547,2]
[368188275,1751053849449,-460.0,0.00020547,2]
[368188276,1751053849459,-906.52,0.00020547,2]
[368188277,1751053849468,-596.37,0.00020547,2]
[368188278,1751053849477,-460.0,0.00020547,2]
[368188279,1751053849486,-495.9,0.00020547,2]
[368188280,1751053849496,-460.0,0.00020547,2]
[368188281,1751053849505,-460.0,0.00020547,2]
[368188282,1751053849515,-460.0,0.00020547,2]
[368188283,1751053849524,-460.0,0.00020547,2]
[368188284,1751053849534,-460.0,0.00020547,2]
[368188285,1751053849543,-460.0,0.00020547,2]
[368188286,1751053849553,-460.0,0.00020547,2]
[368188287,1751053849562,-814.93,0.00020547,2]
[368188288,1751053849571,-1058.59,0.00020547,2]
[368188289,1751053849581,-638.46,0.00020547,2]
[368188290,1751053849590,-460.0,0.00020547,2]
[368188291,1751053849600,-460.0,0.00020547,2]
[368188292,1751053849609,-460.0,0.00020547,2]
[368188293,1751053849619,-549.61,0.00020547,2]
[368188294,1751053849628,-460.0,0.00020547,2]
[368188295,1751053849639,-460.0,0.00020547,2]
[368188296,1751053849649,-469.16716367,0.00020547,2]
[368188297,1751053849659,-2242.83,0.00020547,2]
[368188298,1751053849669,-421.82,0.00020547,2]
[368188299,1751053849679,-309.42,0.00020547,2]
[368188300,1751053849689,-247.3,0.00020547,2]
[368188301,1751053849698,-633.0,0.00020547,2]
[368188302,1751053849708,-619.29,0.00020547,2]
[368188303,1751053849717,-784.22,0.00020547,2]
[368188304,1751053849727,-460.0,0.00020547,2]
[368188305,1751053849736,-460.0,0.00020547,2]
[368188306,1751053849747,-646.64,0.00020547,2]
[368188307,1751053849756,-603.09,0.00020547,2]
[368188308,1751053849766,-842.86,0.00020547,2]
[368188309,1751053849775,-460.0,0.00020547,2]
[368188310,1751053849786,-734.51,0.00020547,2]
[368188311,1751053849796,-1307.19,0.00020547,2]
[368188312,1751053849805,-460.0,0.00020547,2]
[368188313,1751053849816,-568.8,0.00020547,2]
[368188314,1751053849827,-2113.32,0.00020547,2]
[368188315,1751053849837,-460.0,0.00020547,2]
[368188316,1751053849847,-483.6,0.00020547,2]
[368188317,1751053849856,-468.81,0.00020547,2]
[368188318,1751053849864,-460.0,0.00020547,2]
[368188319,1751053849874,-848.41,0.00020547,2]
[368188320,1751053849883,-3785.4,0.00020547,2]
[368188321,1751053849893,-460.0,0.00020547,2]
[368188322,1751053849902,-3582.34,0.00020547,2]
[368188323,1751053849911,-460.0,0.00020547,2]
[368188324,1751053849924,-1149.0,0.00020547,2]
[368188325,1751053849933,-574.04,0.00020547,2]
[368188326,1751053849942,-460.0,0.00020547,2]
[368188327,1751053849951,-460.0,0.00020547,2]
[368188328,1751053849960,-4447.6,0.00020547,2]
[368188329,1751053849968,-270.14,0.00020547,2]
[368188330,1751053849979,-6901.52,0.00020547,2]
[368188331,1751053849988,-460.0,0.00020547,2]
[368188332,1751053849998,-460.0,0.00020547,2]
[368188333,1751053850007,-852.45,0.00020547,2]
[368188334,1751053850016,-460.0,0.00020547,2]
[368188335,1751053850026,-565.42,0.00020547,2]
[368188336,1751053850035,-679.41,0.00020547,2]
[368188337,1751053850046,-460.0,0.00020547,2]
[368188338,1751053850055,-460.0,0.00020547,2]
[368188339,1751053850064,-460.0,0.00020547,2]
[368188340,1751053850074,-460.0,0.00020547,2]
[368188341,1751053850085,-2405.58,0.00020547,2]
[368188342,1751053850094,-1768.21,0.00020547,2]
[368188343,1751053850103,-460.0,0.00020547,2]
[368188344,1751053850113,-682.75,0.00020547,2]
[368188345,1751053850122,-460.0,0.00020547,2]
[368188346,1751053850131,-1787.48,0.00020547,2]
[368188347,1751053850141,-822.23,0.00020547,2]
[368188348,1751053850150,-460.0,0.00020547,2]
[368188349,1751053850160,-460.0,0.00020547,2]
[368188350,1751053850169,-954.48,0.00020547,2]
[368188351,1751053850179,-2374.8,0.00020547,2]
[368188352,1751053850188,-502.63,0.00020547,2]
[368188353,1751053850197,-460.0,0.00020547,2]
[368188354,1751053850206,-460.0,0.00020547,2]
[368188355,1751053850216,-1416.54,0.00020547,2]
[368188356,1751053850225,-2471.16,0.00020547,2]
[368188357,1751053850234,-460.0,0.00020547,2]
[368188358,1751053850242,-460.0,0.00020547,2]
[368188359,1751053850252,-839.48,0.00020547,2]
[368188360,1751053850260,-460.0,0.00020547,2]
[368188361,1751053850270,-460.0,0.00020547,2]
[368188362,1751053850279,-460.0,0.00020547,2]
[368188363,1751053850291,-607.0,0.00020547,2]
[368188364,1751053850300,-6207.0,0.00020547,2]
[368188365,1751053850309,-813.61,0.00020547,2]
[368188366,1751053850318,-460.0,0.00020547,2]
[368188367,1751053850328,-460.0,0.00020547,2]
[368188368,1751053850338,-596.72,0.00020547,2]
[368188369,1751053850347,-460.0,0.00020547,2]
[368188370,1751053850357,-460.0,0.00020547,2]
[368188371,1751053850367,-2116.86,0.00020547,2]
[368188372,1751053850377,-3896.14,0.00020547,2]
[368188373,1751053850386,-460.0,0.00020547,2]
[368188374,1751053850399,-875.63,0.00020547,2]
[368188375,1751053850409,-460.0,0.00020547,2]
[368188376,1751053850418,-814.23,0.00020547,2]
[368188377,1751053850427,-693.24,0.00020547,2]
[368188378,1751053850436,-460.0,0.00020547,2]
[368188379,1751053850446,-460.0,0.00020547,2]
[368188380,1751053850455,-355.65289753,0.00020547,2]
[368188381,1751053850465,-8109.64,0.00020547,2]
[368188382,1751053850474,-460.0,0.00020547,2]
[368188383,1751053850483,-460.0,0.00020547,2]
[368188384,1751053850493,-1086.05,0.00020547,2]
[368188385,1751053850502,-460.0,0.00020547,2]
[368188386,1751053850512,-460.0,0.00020547,2]
[368188387,1751053850521,-1689.17,0.00020547,2]
[368188388,1751053850530,-460.0,0.00020547,2]
[368188389,1751053850539,-460.0,0.00020547,2]
[368188390,1751053850548,-3624.49,0.00020547,2]
[368188391,1751053850557,-255.53,0.00020547,2]
[368188392,1751053850566,-460.0,0.00020547,2]
[368188393,1751053850576,-2205.06,0.00020547,2]
[368188394,1751053850585,-460.0,0.00020547,2]
[368188395,1751053850594,-524.72,0.00020547,2]
[368188396,1751053850603,-460.0,0.00020547,2]
[368188397,1751053850612,-855.54,0.00020547,2]
[368188398,1751053850621,-460.0,0.00020547,2]
[368188399,1751053850630,-884.62,0.00020547,2]
[368188400,1751053850640,-4382.09,0.00020547,2]
[368188401,1751053850649,-1461.53,0.000206,2]
[368188402,1751053850658,-213.75309343,0.00020624,3]
[368188403,1751053850667,-12562.41216491,0.00020624,3]
[368188404,1751053850677,-6150.849873,0.00020624,3]
[368188405,1751053850686,-847.04181546,0.00020624,3]
[368188406,1751053850696,-1500.0,0.00020628,2]
[368188407,1751053850705,-2269.22702627,0.00020721,2]
[368188408,1751053850714,-151.0,0.00020821,2]
[368188409,1751053850724,-151.0,0.00020821,2]
[368188410,1751053850734,-460.0,0.00020821,2]
[368188411,1751053850743,-353.32,0.00020821,2]
[368188412,1751053850752,-460.0,0.00020821,2]
[368188413,1751053850762,-691.31,0.00020821,2]
[368188414,1751053850771,-460.0,0.00020821,2]
[368188415,1751053850780,-460.0,0.00020821,2]
[368188416,1751053850790,-460.0,0.00020821,2]
[368188417,1751053850800,-895.91,0.00020821,2]
[368188418,1751053850809,-501.78,0.00020821,2]
[368188419,1751053850819,-460.0,0.00020821,2]
[368188420,1751053850828,-480.75,0.00020821,2]
[368188421,1751053850838,-460.0,0.00020821,2]
[368188422,1751053850847,-209.62016079,0.00020821,2]
[368188423,1751053850857,-460.0,0.00020821,2]
[368188424,1751053850866,-460.0,0.00020821,2]
[368188425,1751053850875,-460.0,0.00020821,2]
[368188426,1751053850884,-460.0,0.00020821,2]
[368188427,1751053850895,-460.0,0.00020821,2]
[368188428,1751053850904,-460.0,0.00020821,2]
[368188429,1751053850913,-341.21598017,0.00020821,2]
[368188430,1751053850923,-460.0,0.00020821,2]
[368188431,1751053850931,-460.0,0.00020821,2]
[368188432,1751053850941,-460.0,0.00020821,2]
[368188433,1751053850950,-460.0,0.00020821,2]
[368188434,1751053850959,-460.0,0.00020821,2]
[368188435,1751053850969,-460.0,0.00020821,2]
[368188436,1751053850978,-460.0,0.00020821,2]
[368188437,1751053850987,-906.52,0.00020821,2]
[368188438,1751053850997,-596.37,0.00020821,2]
[368188439,1751053851007,-460.0,0.00020821,2]
[368188440,1751053851016,-495.9,0.00020821,2]
[368188441,1751053851026,-460.0,0.00020821,2]
[368188442,1751053851035,-460.0,0.00020821,2]
[368188443,1751053851045,-460.0,0.00020821,2]
[368188444,1751053851054,-460.0,0.00020821,2]
[368188445,1751053851063,-460.0,0.00020821,2]
[368188446,1751053851073,-460.0,0.00020821,2]
[368188447,1751053851082,-460.0,0.00020821,2]
[368188448,1751053851091,-814.93,0.00020821,2]
[368188449,1751053851100,-1058.59,0.00020821,2]
[368188450,1751053851110,-638.46,0.00020821,2]
[368188451,1751053851120,-460.0,0.00020821,2]
[368188452,1751053851129,-460.0,0.00020821,2]
[368188453,1751053851140,-549.61,0.00020821,2]
[368188454,1751053851149,-460.0,0.00020821,2]
[368188455,1751053851159,-460.0,0.00020821,2]
[368188456,1751053851168,-2242.83,0.00020821,2]
[368188457,1751053851178,-633.0,0.00020821,2]
[368188458,1751053851187,-619.29,0.00020821,2]
[368188459,1751053851197,-784.22,0.00020821,2]
[368188460,1751053851206,-460.0,0.00020821,2]
[368188461,1751053851215,-460.0,0.00020821,2]
[368188462,1751053851225,-646.64,0.00020821,2]
[368188463,1751053851234,-603.09,0.00020821,2]
[368188464,1751053851244,-842.86,0.00020821,2]
[368188465,1751053851253,-460.0,0.00020821,2]
[368188466,1751053851263,-734.51,0.00020821,2]
[368188467,1751053851272,-1307.19,0.00020821,2]
[368188468,1751053851282,-460.0,0.00020821,2]
[368188469,1751053851295,-568.8,0.00020821,2]
[368188470,1751053851305,-2113.32,0.00020821,2]
[368188471,1751053851314,-460.0,0.00020821,2]
[368188472,1751053851324,-483.6,0.00020821,2]
[368188473,1751053851334,-468.81,0.00020821,2]
[368188474,1751053851344,-460.0,0.00020821,2]
[368188475,1751053851354,-848.41,0.00020821,2]
[368188476,1751053851365,-3785.4,0.00020821,2]
[368188477,1751053851375,-460.0,0.00020821,2]
[368188478,1751053851384,-3582.34,0.00020821,2]
[368188479,1751053851394,-460.0,0.00020821,2]
[368188480,1751053851403,-1149.0,0.00020821,2]
[368188481,1751053851413,-574.04,0.00020821,2]
[368188482,1751053851423,-460.0,0.00020821,2]
[368188483,1751053851432,-460.0,0.00020821,2]
[368188484,1751053851441,-4447.6,0.00020821,2]
[368188485,1751053851451,-6901.52,0.00020821,2]
[368188486,1751053851460,-460.0,0.00020821,2]
[368188487,1751053851470,-460.0,0.00020821,2]
[368188488,1751053851479,-852.45,0.00020821,2]
[368188489,1751053851488,-460.0,0.00020821,2]
[368188490,1751053851498,-565.42,0.00020821,2]
[368188491,1751053851507,-679.41,0.00020821,2]
[368188492,1751053851516,-205.70532358,0.00020821,2]
[368188493,1751053851526,-460.0,0.00020821,2]
[368188494,1751053851535,-460.0,0.00020821,2]
[368188495,1751053851545,-460.0,0.00020821,2]
[368188496,1751053851555,-2405.58,0.00020821,2]
[368188497,1751053851565,-1768.21,0.00020821,2]
[368188498,1751053851577,-460.0,0.00020821,2]
[368188499,1751053851586,-460.0,0.00020821,2]
[368188500,1751053851596,-1787.48,0.00020821,2]
[368188501,1751053851605,-822.23,0.00020821,2]
[368188502,1751053851614,-460.0,0.00020821,2]
[368188503,1751053851623,-460.0,0.00020821,2]
[368188504,1751053851633,-954.48,0.00020821,2]
[368188505,1751053851642,-2374.8,0.00020821,2]
[368188506,1751053851651,-502.63,0.00020821,2]
[368188507,1751053851661,-460.0,0.00020821,2]
[368188508,1751053851670,-394.37,0.00020821,2]
[368188509,1751053851680,-1416.54,0.00020821,2]
[368188510,1751053851689,-2471.16,0.00020821,2]
[368188511,1751053851698,-465.31582066,0.00020821,2]
[368188512,1751053851707,-460.0,0.00020821,2]
[368188513,1751053851717,-839.48,0.00020821,2]
[368188514,1751053851726,-460.0,0.00020821,2]
[368188515,1751053851735,-460.0,0.00020821,2]
[368188516,1751053851744,-460.0,0.00020821,2]
[368188517,1751053851753,-607.0,0.00020821,2]
[368188518,1751053851762,-6207.0,0.00020821,2]
[368188519,1751053851771,-813.61,0.00020821,2]
[368188520,1751053851781,-491.32941475,0.00020821,2]
[368188521,1751053851790,-466.04038723,0.00020821,2]
[368188522,1751053851799,-596.72,0.00020821,2]
[368188523,1751053851807,-460.0,0.00020821,2]
[368188524,1751053851816,-460.0,0.00020821,2]
[368188525,1751053851826,-2116.86,0.00020821,2]
[368188526,1751053851835,-3896.14,0.00020821,2]
[368188527,1751053851845,-460.0,0.00020821,2]
[368188528,1751053851854,-460.0,0.00020821,2]
[368188529,1751053851863,-814.23,0.00020821,2]
[368188530,1751053851872,-875.63,0.00020821,2]
[368188531,1751053851881,-693.24,0.00020821,2]
[368188532,1751053851891,-460.0,0.00020821,2]
[368188533,1751053851899,-8109.64,0.00020821,2]
[368188534,1751053851908,-460.0,0.00020821,2]
[368188535,1751053851918,-460.0,0.00020821,2]
[368188536,1751053851927,-1086.05,0.00020821,2]
[368188537,1751053851938,-460.0,0.00020821,2]
[368188538,1751053851947,-460.0,0.00020821,2]
[368188539,1751053851956,-460.0,0.00020821,2]
[368188540,1751053852093,-1689.17,0.00020821,2]
[368188541,1751053852104,-460.0,0.00020821,2]
[368188542,1751053852115,-3624.49,0.00020821,2]
[368188543,1751053852127,-325.7,0.00020821,2]
[368188544,1751053852138,-460.0,0.00020821,2]
[368188545,1751053852148,-2205.06,0.00020821,2]
[368188546,1751053852158,-524.72,0.00020821,2]
[368188547,1751053852166,-460.0,0.00020821,2]
[368188548,1751053852176,-855.54,0.00020821,2]
[368188549,1751053852185,-460.0,0.00020821,2]
[368188550,1751053852194,-884.62,0.00020821,2]
[368188551,1751053852203,-4382.09,0.00020821,2]
[368188552,1751053852212,-6150.849873,0.00020866,4]
[368188553,1751053852221,-177.4788171,0.00020904,2]
[368188554,1751053852230,-159.2394861,0.00020904,2]
[368188555,1751053852239,-159.0575121,0.00020904,2]
[368188556,1751053852248,-177.4788171,0.00020904,2]
[368188557,1751053852257,-177.4788171,0.00020904,2]
[368188558,1751053852267,-354.4494077,0.00020904,2]
[368188559,1751053852277,-168.0,0.0002092,2]
[368188560,1751053852287,-181.9,0.00020943,4]
[368188561,1751053852299,-153.0,0.00021041,2]
[368188562,1751053852308,-460.0,0.00021095,2]
[368188563,1751053852318,-151.97,0.00021095,2]
[368188564,1751053852327,-691.31,0.00021095,2]
[368188565,1751053852337,-460.0,0.00021095,2]
[368188566,1751053852347,-460.0,0.00021095,2]
[368188567,1751053852356,-460.0,0.00021095,2]
[368188568,1751053852368,-895.91,0.00021095,2]
[368188569,1751053852378,-501.78,0.00021095,2]
[368188570,1751053852387,-460.0,0.00021095,2]
[368188571,1751053852397,-480.75,0.00021095,2]
[368188572,1751053852407,-177.84607457,0.00021095,2]
[368188573,1751053852416,-460.0,0.00021095,2]
[368188574,1751053852425,-460.0,0.00021095,2]
[368188575,1751053852434,-157.53,0.00021095,2]
[368188576,1751053852444,-460.0,0.00021095,2]
[368188577,1751053852454,-460.0,0.00021095,2]